2CCN - Level 2 Cost Centre Name,,9CCN - Level 9 Cost Centre Name,9CCC - Level 9 Cost Centre Code,9AN - Level 9 Account Name,9AC - Level 9 Account Code,Date posted,Date of transaction,Merchant Name,Merchant City,Merchant State,Merchant Zip Code,Originating Account Name,Originating Account Number,MCC/SIC Code,MCC Description,Original Amount,Currency,Conversion Rate,Billed Amount,Debit Credit,Reference Number,Statement Cycle,Account Name
Gloucester City Council,23UE,Museum of Gloucester,MU002,General Supplies/Materials,3025,07/10/2019,03/10/2019,THE WORKS,GLOUCESTER,,GL1 2NG,REDACTED,556*********2362,5310,DISCOUNT STORES,6,Pound Sterling (826),1.000000000,6,Debit,85481479277177080405381,02/11/2019,GLOUCESTER CITY COUNCIL
Gloucester City Council,23UE,Museum of Gloucester Catering,MU004,Hospitality & Refreshments,3104,07/10/2019,05/10/2019,ASDA SUPERSTORE,GLOUCESTER,GBR,GL1 1DS,REDACTED,556*********2362,5411,"GROCERY STORES, SUPERMARKETS",10.94,Pound Sterling (826),1.000000000,10.94,Debit,15377759279090760966951,02/11/2019,GLOUCESTER CITY COUNCIL
Gloucester City Council,23UE,Museum of Gloucester,MU002,General Supplies/Materials,3025,07/10/2019,05/10/2019,LYCO GROUP LTD,MILTON KEYNES,GBR,MK1 1ZR,REDACTED,556*********2362,5065,ELECTRICAL PARTS AND EQUIPMENT,156.66,Pound Sterling (826),1.000000000,156.66,Debit,15276329280001076830345,02/11/2019,GLOUCESTER CITY COUNCIL
Gloucester City Council,23UE,Museum of Gloucester,MU002,Exhibition Costs,3021,08/10/2019,07/10/2019,HADEN-BROWNE PLAST,GLOUCESTER,,GL14JJ,REDACTED,556*********2362,5399,MISCELLANEOUS GENERAL MERCHANDISE STORES,36,Pound Sterling (826),1.000000000,36,Debit,85481479281178147048614,02/11/2019,GLOUCESTER CITY COUNCIL
Gloucester City Council,23UE,Museum of Gloucester,MU002,Exhibition Costs,3021,10/10/2019,09/10/2019,HADEN-BROWNE PLAST,GLOUCESTER,,GL14JJ,REDACTED,556*********2362,5399,MISCELLANEOUS GENERAL MERCHANDISE STORES,43.2,Pound Sterling (826),1.000000000,43.2,Debit,85481479283178671512967,02/11/2019,GLOUCESTER CITY COUNCIL
Gloucester City Council,23UE,Museum of Gloucester,MU002,General Supplies/Materials,3025,11/10/2019,10/10/2019,WILKO RETAIL LIMITED,GLOUCESTER,GBR,GL1 1SL,REDACTED,556*********2362,5399,MISCELLANEOUS GENERAL MERCHANDISE STORES,40,Pound Sterling (826),1.000000000,40,Debit,45425159284030366881613,02/11/2019,GLOUCESTER CITY COUNCIL
Gloucester City Council,23UE,Museum of Gloucester,MU002,General Supplies/Materials,3025,11/10/2019,10/10/2019,WILKO RETAIL LIMITED,GLOUCESTER,GBR,GL1 1SL,REDACTED,556*********2362,5399,MISCELLANEOUS GENERAL MERCHANDISE STORES,29,Pound Sterling (826),1.000000000,29,Debit,45425159284030366881597,02/11/2019,GLOUCESTER CITY COUNCIL
Gloucester City Council,23UE,Museum of Gloucester,MU002,General Supplies/Materials,3025,11/10/2019,11/10/2019,AMZNMktplace,amazon.co.uk,GBR,EC2A 2FA,REDACTED,556*********2362,5999,MISCELLANEOUS AND RETAIL STORES,57.7,Pound Sterling (826),1.000000000,57.7,Debit,52692019284200321260348,02/11/2019,GLOUCESTER CITY COUNCIL
Gloucester City Council,23UE,Museum of Gloucester,MU002,General Supplies/Materials,3025,14/10/2019,11/10/2019,HOBBYCRAFT,GLOUCESTER,,GL1 5SF,REDACTED,556*********2362,5970,"ARTIST SUPPLY STORES, CRAFT SHOPS",33,Pound Sterling (826),1.000000000,33,Debit,55541969285469000059286,02/11/2019,GLOUCESTER CITY COUNCIL
Gloucester City Council,23UE,Museum of Gloucester,MU002,General Supplies/Materials,3025,14/10/2019,14/10/2019,AMZNMktplace,amazon.co.uk,GBR,EC2A 2FA,REDACTED,556*********2362,5999,MISCELLANEOUS AND RETAIL STORES,25.5,Pound Sterling (826),1.000000000,25.5,Debit,52692019287200030036580,02/11/2019,GLOUCESTER CITY COUNCIL
Gloucester City Council,23UE,Museum of Gloucester,MU002,General Supplies/Materials,3025,15/10/2019,13/10/2019,AMZNMKTPLACE AMAZON.CO,AMAZON.CO.UK,GBR,EC2A 2FA,REDACTED,556*********2362,5999,MISCELLANEOUS AND RETAIL STORES,112.93,Pound Sterling (826),1.000000000,112.93,Debit,85389249287940762054431,02/11/2019,GLOUCESTER CITY COUNCIL
Gloucester City Council,23UE,Museum of Gloucester Catering,MU004,Hospitality & Refreshments,3104,16/10/2019,15/10/2019,ASDA SUPERSTORE,GLOUCESTER,GBR,GL1 1DS,REDACTED,556*********2362,5411,"GROCERY STORES, SUPERMARKETS",5.32,Pound Sterling (826),1.000000000,5.32,Debit,45377759289060275227335,02/11/2019,GLOUCESTER CITY COUNCIL
Gloucester City Council,23UE,Museum of Gloucester,MU002,General Supplies/Materials,3025,17/10/2019,16/10/2019,THE WORKS,GLOUCESTER,,GL1 2NG,REDACTED,556*********2362,5310,DISCOUNT STORES,5,Pound Sterling (826),1.000000000,5,Debit,85481479290180510515210,02/11/2019,GLOUCESTER CITY COUNCIL
Gloucester City Council,23UE,Museum of Gloucester Catering,MU004,Hospitality & Refreshments,3104,18/10/2019,17/10/2019,ASDA SUPERSTORE,GLOUCESTER,GBR,GL1 1DS,REDACTED,556*********2362,5411,"GROCERY STORES, SUPERMARKETS",2.18,Pound Sterling (826),1.000000000,2.18,Debit,45377759291080294347399,02/11/2019,GLOUCESTER CITY COUNCIL
Gloucester City Council,23UE,Museum of Gloucester Catering,MU004,Hospitality & Refreshments,3104,01/11/2019,31/10/2019,ASDA SUPERSTORE,GLOUCESTER,GBR,GL1 1DS,REDACTED,556*********9934,5411,"GROCERY STORES, SUPERMARKETS",1.48,Pound Sterling (826),1.000000000,1.48,Debit,45377759305080348166815,02/11/2019,GLOUCESTER CITY COUNCIL
Gloucester City Council,23UE,Members Support,DS002,Members Travel Expenses,3609,31/10/2019,30/10/2019,Trainline,London,GBR,1445,REDACTED,556*********7811,4112,PASSENGER RAILWAYS,88.5,Pound Sterling (826),1.000000000,88.5,Debit,85130089303943908789631,02/11/2019,GLOUCESTER CITY COUNCIL
Gloucester City Council,23UE,Members Support,DS002,Members Travel Expenses,3609,07/10/2019,04/10/2019,Trainline,London,GBR,1445,REDACTED,556*********1418,4112,PASSENGER RAILWAYS,80.8,Pound Sterling (826),1.000000000,80.8,Debit,85130089277939609721404,02/11/2019,GLOUCESTER CITY COUNCIL
Gloucester City Council,23UE,Managing Director & Directors,MT001,Public Transport - Staff,2402,09/10/2019,08/10/2019,Trainline,London,GBR,1445,REDACTED,556*********1418,4112,PASSENGER RAILWAYS,67.7,Pound Sterling (826),1.000000000,67.7,Debit,85130089281940802247951,02/11/2019,GLOUCESTER CITY COUNCIL
Gloucester City Council,23UE,Managing Director & Directors,MT001,Public Transport - Staff,2402,09/10/2019,08/10/2019,Trainline,London,GBR,1445,REDACTED,556*********1418,4112,PASSENGER RAILWAYS,84,Pound Sterling (826),1.000000000,84,Debit,85130089281940802232482,02/11/2019,GLOUCESTER CITY COUNCIL
Gloucester City Council,23UE,Managing Director & Directors,MT001,Public Transport - Staff,2402,16/10/2019,15/10/2019,Trainline,London,GBR,1445,REDACTED,556*********1418,4112,PASSENGER RAILWAYS,27,Pound Sterling (826),1.000000000,27,Debit,85130089288941155282952,02/11/2019,GLOUCESTER CITY COUNCIL
Gloucester City Council,23UE,Managing Director & Directors,MT001,General Supplies/Materials,3025,22/10/2019,21/10/2019,MARKS&SPENCER PLC,INTERNET,GBR,M50 3SP,REDACTED,556*********1418,5411,"GROCERY STORES, SUPERMARKETS",156,Pound Sterling (826),1.000000000,156,Debit,35377759295000238305730,02/11/2019,GLOUCESTER CITY COUNCIL
Gloucester City Council,23UE,Countryside Unit,EP003,Vehicle Repairs and Maintenance,2103,03/10/2019,01/10/2019,PAYPAL *LEISUREMART,35314369001,GBR,TW91EH,REDACTED,556*********6734,5533,"AUTOMOTIVE PARTS, ACCESSORIES STORES",9.84,Pound Sterling (826),1.000000000,9.84,Debit,85130089275939464060213,02/11/2019,GLOUCESTER CITY COUNCIL
Gloucester City Council,23UE,Horsbere Brook Local Nature Reserve Wks,XCHBN,Contract Works/Services,9001,24/10/2019,23/10/2019,T&M B2C ECOMM,WWW.THOMPSON-,,IP8 3BU,REDACTED,556*********6734,5399,MISCELLANEOUS GENERAL MERCHANDISE STORES,94.92,Pound Sterling (826),1.000000000,94.92,Debit,55504439296295366216905,02/11/2019,GLOUCESTER CITY COUNCIL
Gloucester City Council,23UE,Horsbere Brook Local Nature Reserve Wks,XCHBN,Contract Works/Services,9001,24/10/2019,23/10/2019,WWW.BOSTONSEEDS.CO,01205 280069,,PE22 7AN,REDACTED,556*********6734,5261,"NURSERIES, LAWN AND GARDEN SUPPLY STORES",84.95,Pound Sterling (826),1.000000000,84.95,Debit,85481479297182332830739,02/11/2019,GLOUCESTER CITY COUNCIL
Gloucester City Council,23UE,Countryside Unit,EP003,Vehicle Repairs and Maintenance,2103,29/10/2019,28/10/2019,HALFORDS 0749,GLOUCESTER,GBR,GL4 3EA,REDACTED,556*********6734,5940,BICYCLE SHOPS-SALES AND SERVICE,10.99,Pound Sterling (826),1.000000000,10.99,Debit,35377759302050265137465,02/11/2019,GLOUCESTER CITY COUNCIL
Gloucester City Council,23UE,Countryside Unit,EP003,General Supplies/Materials,3025,29/10/2019,28/10/2019,IZ *DIRECT FARM SUPPLI,"Quedgeley, Gl",GBR,GL2 4AL,REDACTED,556*********6734,5999,MISCELLANEOUS AND RETAIL STORES,15,Pound Sterling (826),1.000000000,15,Debit,55184229301523023291192,02/11/2019,GLOUCESTER CITY COUNCIL
Gloucester City Council,23UE,Museum of Gloucester,MU002,General Supplies/Materials,3025,03/10/2019,02/10/2019,AMZNMKTPLACE AMAZON.CO,AMAZON.CO.UK,GBR,EC2A 2FA,REDACTED,556*********8997,5999,MISCELLANEOUS AND RETAIL STORES,26.49,Pound Sterling (826),1.000000000,26.49,Debit,85389249275939634547766,02/11/2019,GLOUCESTER CITY COUNCIL
Gloucester City Council,23UE,Museum of Gloucester,MU002,General Supplies/Materials,3025,04/10/2019,03/10/2019,AMZNMktplace,amazon.co.uk,GBR,EC2A 2FA,REDACTED,556*********8997,5999,MISCELLANEOUS AND RETAIL STORES,7.33,Pound Sterling (826),1.000000000,7.33,Debit,55204729276200541388877,02/11/2019,GLOUCESTER CITY COUNCIL
Gloucester City Council,23UE,Museum of Gloucester,MU002,General Supplies/Materials,3025,04/10/2019,03/10/2019,Amazon.co.uk*MO2Y43ZU4,AMAZON.CO.UK,LUX,L2338,REDACTED,556*********8997,5969,ALL OTHER DIRECT MARKETERS,10.37,Pound Sterling (826),1.000000000,10.37,Debit,52692019276200512032357,02/11/2019,GLOUCESTER CITY COUNCIL
Gloucester City Council,23UE,Guildhall Bar and Caf�,GH005,External Training Course Fees,0550,08/10/2019,07/10/2019,CPLTRAINING,01506506910,GBR,CH411FN,REDACTED,556*********8997,8220,"COLLEGES, UNIVERSITIES, PROFESSIONAL SCHOOLS AND JUNIOR COLLEGES",168,Pound Sterling (826),1.000000000,168,Debit,85130089280939729886074,02/11/2019,GLOUCESTER CITY COUNCIL
Gloucester City Council,23UE,Museum of Gloucester,MU002,Events,3070,08/10/2019,07/10/2019,JUSTGIVING.COM,LONDON N1 2BN,GBR,N1 2BN,REDACTED,556*********8997,8398,CHARITABLE AND SOCIAL SERVICE ORGANIZATIONS,150,Pound Sterling (826),1.000000000,150,Debit,15276329281000167604295,02/11/2019,GLOUCESTER CITY COUNCIL
Gloucester City Council,23UE,Blackfriars Weddings,GH011,Building Repairs and Maintenance,1001,09/10/2019,08/10/2019,TESCO STORES 5363,GLOUCESTER,GBR,GL3 4AA,REDACTED,556*********8997,5411,"GROCERY STORES, SUPERMARKETS",31.5,Pound Sterling (826),1.000000000,31.5,Debit,15377759282010042293334,02/11/2019,GLOUCESTER CITY COUNCIL
Gloucester City Council,23UE,Gloucester Life Museum,MU005,Archiving,3402,11/10/2019,10/10/2019,PASTHORIZON,01620861643,GBR,EH414QA,REDACTED,556*********8997,5072,HARDWARE EQUIPMENT AND SUPPLIES,56.28,Pound Sterling (826),1.000000000,56.28,Debit,85130089283940883478044,02/11/2019,GLOUCESTER CITY COUNCIL
Gloucester City Council,23UE,Gloucester Life Museum,MU005,General Supplies/Materials,3025,17/10/2019,16/10/2019,AMZNMktplace,amazon.co.uk,GBR,EC2A 2FA,REDACTED,556*********8997,5999,MISCELLANEOUS AND RETAIL STORES,10.98,Pound Sterling (826),1.000000000,10.98,Debit,52692019289200707375624,02/11/2019,GLOUCESTER CITY COUNCIL
Gloucester City Council,23UE,Museum of Gloucester,MU002,General Supplies/Materials,3025,21/10/2019,18/10/2019,Amazon.co.uk*MO1NA8VI4,AMAZON.CO.UK,LUX,L2338,REDACTED,556*********8997,5969,ALL OTHER DIRECT MARKETERS,40.99,Pound Sterling (826),1.000000000,40.99,Debit,52692019291200090138874,02/11/2019,GLOUCESTER CITY COUNCIL
Gloucester City Council,23UE,Museum of Gloucester,MU002,Advertising & Publicity,3404,21/10/2019,18/10/2019,MAILCHIMP *MONTHLY,MAILCHIMP.COM,GA,30308,REDACTED,556*********8997,5968,CONTINUITY/SUBSCRIPTION MERCHANTS,39.51,Pound Sterling (826),1.000000000,39.51,Debit,55425449291200198077566,02/11/2019,GLOUCESTER CITY COUNCIL
Gloucester City Council,23UE,Museum of Gloucester,MU002,Advertising & Publicity,3404,21/10/2019,18/10/2019,FACEBK *Z7UBJQJ9X2,fb.me/ads,IRL,UNKNOWN,REDACTED,556*********8997,7311,ADVERTISING SERVICES,65,Pound Sterling (826),1.000000000,65,Debit,55204729291200188739920,02/11/2019,GLOUCESTER CITY COUNCIL
Gloucester City Council,23UE,Visitor Experience,VE001,Operative Clothing Allowances,0502,22/10/2019,21/10/2019,WWW.CLOTHES2ORDER.COM,MANCHESTER M1,GBR,M17 1EH,REDACTED,556*********8997,5137,"MEN'S,WOMEN'S AND CHILDREN'S UNIFORMS AN",691.97,Pound Sterling (826),1.000000000,691.97,Debit,15276329295000524871623,02/11/2019,GLOUCESTER CITY COUNCIL
Gloucester City Council,23UE,Museum of Gloucester,MU002,Events,3070,24/10/2019,23/10/2019,AMZNMktplace,amazon.co.uk,GBR,EC2A 2FA,REDACTED,556*********8997,5999,MISCELLANEOUS AND RETAIL STORES,7.89,Pound Sterling (826),1.000000000,7.89,Debit,52692019296200284610592,02/11/2019,GLOUCESTER CITY COUNCIL
Gloucester City Council,23UE,Museum of Gloucester,MU002,Advertising & Publicity,3404,25/10/2019,24/10/2019,FACEBK *XC5NMQJ9X2,fb.me/ads,IRL,UNKNOWN,REDACTED,556*********8997,7311,ADVERTISING SERVICES,55.3,Pound Sterling (826),1.000000000,55.3,Debit,55204729297200531818912,02/11/2019,GLOUCESTER CITY COUNCIL
Gloucester City Council,23UE,Museum of Gloucester,MU002,Events,3070,30/10/2019,29/10/2019,AMZNMktplace,amazon.co.uk,GBR,EC2A 2FA,REDACTED,556*********8997,5999,MISCELLANEOUS AND RETAIL STORES,13.96,Pound Sterling (826),1.000000000,13.96,Debit,52692019302200667282896,02/11/2019,GLOUCESTER CITY COUNCIL
Gloucester City Council,23UE,Docks Complex - Services,AM006,Building Repairs and Maintenance,1001,09/10/2019,08/10/2019,B & Q 1179,GLOUCESTER,,GL12SG,REDACTED,556*********4301,5200,HOME SUPPLY WAREHOUSE STORES,83.89,Pound Sterling (826),1.000000000,83.89,Debit,85481479282178379786542,02/11/2019,GLOUCESTER CITY COUNCIL
Gloucester City Council,23UE,Docks Complex - Services,AM006,General Supplies/Materials,3025,10/10/2019,09/10/2019,GLOUCESTER FRAMING AND,GLOUCESTER,,GL1 2DY,REDACTED,556*********4301,5970,"ARTIST SUPPLY STORES, CRAFT SHOPS",-159,Pound Sterling (826),1.000000000,-159,Credit,85481479282178538564079,02/11/2019,GLOUCESTER CITY COUNCIL
Gloucester City Council,23UE,Docks Complex - Services,AM006,Hospitality & Refreshments,3104,14/10/2019,11/10/2019,SAINSBURYS 2221,GLOUCESTER,GBR,GL2 5SA,REDACTED,556*********4301,5411,"GROCERY STORES, SUPERMARKETS",17.75,Pound Sterling (826),1.000000000,17.75,Debit,25425159285040184698215,02/11/2019,GLOUCESTER CITY COUNCIL
Gloucester City Council,23UE,Docks Complex - Services,AM006,Hospitality & Refreshments,3104,21/10/2019,18/10/2019,TESCO STORES 6654,GLOUCESTER,GBR,GL3 1AB,REDACTED,556*********4301,5411,"GROCERY STORES, SUPERMARKETS",32.12,Pound Sterling (826),1.000000000,32.12,Debit,15377759292090066433451,02/11/2019,GLOUCESTER CITY COUNCIL
Gloucester City Council,23UE,Guildhall Events,GH002,Public Transport - Staff,2402,03/10/2019,02/10/2019,Trainline,London,GBR,1445,REDACTED,556*********4234,4112,PASSENGER RAILWAYS,95.2,Pound Sterling (826),1.000000000,95.2,Debit,85130089275939495216891,02/11/2019,GLOUCESTER CITY COUNCIL
Gloucester City Council,23UE,Cemeteries,CC004,Vehicle Repairs and Maintenance,2103,03/10/2019,02/10/2019,DVLA VEHICLE TAX,0300 1234321,,SA6 7JL,REDACTED,556*********4234,9399,GOVERNMENT SERVICES NOT ELSEWHERE CLASSIFIED,262.5,Pound Sterling (826),1.000000000,262.5,Debit,85481479276176757817143,02/11/2019,GLOUCESTER CITY COUNCIL
Gloucester City Council,23UE,Development Management,PL003,Public Transport - Staff,2402,09/10/2019,08/10/2019,Trainline,London,GBR,1445,REDACTED,556*********4234,4112,PASSENGER RAILWAYS,96,Pound Sterling (826),1.000000000,96,Debit,85130089281940802234397,02/11/2019,GLOUCESTER CITY COUNCIL
Gloucester City Council,23UE,Development Management,PL003,Equipment and Furniture,3001,10/10/2019,09/10/2019,ARGOS RETAIL GROUP,INTERNET,,MK92NW,REDACTED,556*********4234,5310,DISCOUNT STORES,179.96,Pound Sterling (826),1.000000000,179.96,Debit,85481479283178632363286,02/11/2019,GLOUCESTER CITY COUNCIL
Gloucester City Council,23UE,Housing Services,HS001,Public Transport - Staff,2402,21/10/2019,18/10/2019,Trainline,London,GBR,1445,REDACTED,556*********4234,4112,PASSENGER RAILWAYS,370.9,Pound Sterling (826),1.000000000,370.9,Debit,85130089291941282939339,02/11/2019,GLOUCESTER CITY COUNCIL
Gloucester City Council,23UE,Housing Services,HS001,Public Transport - Staff,2402,21/10/2019,18/10/2019,Trainline,London,GBR,1445,REDACTED,556*********4234,4112,PASSENGER RAILWAYS,370.9,Pound Sterling (826),1.000000000,370.9,Debit,85130089291941282934371,02/11/2019,GLOUCESTER CITY COUNCIL
Gloucester City Council,23UE,Council Streetcare Team,NE002,Public Transport - Staff,2402,24/10/2019,23/10/2019,Trainline,London,GBR,1445,REDACTED,556*********4234,4112,PASSENGER RAILWAYS,75.1,Pound Sterling (826),1.000000000,75.1,Debit,85130089296942555448078,02/11/2019,GLOUCESTER CITY COUNCIL
Gloucester City Council,23UE,Council Streetcare Team,NE002,Public Transport - Staff,2402,29/10/2019,28/10/2019,Trainline,London,GBR,1445,REDACTED,556*********4234,4112,PASSENGER RAILWAYS,10.75,Pound Sterling (826),1.000000000,10.75,Debit,85130089301942807658493,02/11/2019,GLOUCESTER CITY COUNCIL
Gloucester City Council,23UE,Civic Admin & Hospitality,DS001,Public Transport - Staff,2402,04/10/2019,03/10/2019,Trainline,London,GBR,1445,REDACTED,556*********3029,4112,PASSENGER RAILWAYS,70.5,Pound Sterling (826),1.000000000,70.5,Debit,85130089276939556484528,02/11/2019,GLOUCESTER CITY COUNCIL
Gloucester City Council,23UE,Civic Admin & Hospitality,DS001,Hospitality & Refreshments,3104,09/10/2019,07/10/2019,Holiday Inns,LONDON W1J,,W1J 8NE,REDACTED,556*********3029,3501,HOLIDAY INNS,271,Pound Sterling (826),1.000000000,271,Debit,85481479282178442643910,02/11/2019,GLOUCESTER CITY COUNCIL
Gloucester City Council,23UE,Housing Services,HS001,B&B Payments,1303,03/10/2019,02/10/2019,TRAVELODGE GB0000,THAME,,OX9 3AT,REDACTED,556*********6959,3615,TRAVELODGE,101.98,Pound Sterling (826),1.000000000,101.98,Debit,55504439275298172976170,02/11/2019,GLOUCESTER CITY COUNCIL
Gloucester City Council,23UE,Housing Services,HS001,B&B Payments,1303,03/10/2019,02/10/2019,TRAVELODGE GB0000,THAME,,OX9 3AT,REDACTED,556*********6959,3615,TRAVELODGE,104.98,Pound Sterling (826),1.000000000,104.98,Debit,55504439275298172986815,02/11/2019,GLOUCESTER CITY COUNCIL
Gloucester City Council,23UE,Housing Services,HS001,B&B Payments,1303,03/10/2019,02/10/2019,TRAVELODGE GB0000,THAME,,OX9 3AT,REDACTED,556*********6959,3615,TRAVELODGE,104.98,Pound Sterling (826),1.000000000,104.98,Debit,55504439275298172990536,02/11/2019,GLOUCESTER CITY COUNCIL
Gloucester City Council,23UE,Housing Services,HS001,B&B Payments,1303,03/10/2019,02/10/2019,TRAVELODGE GB0000,THAME,,OX9 3AT,REDACTED,556*********6959,3615,TRAVELODGE,125.48,Pound Sterling (826),1.000000000,125.48,Debit,55504439275298173045017,02/11/2019,GLOUCESTER CITY COUNCIL
Gloucester City Council,23UE,Housing Services,HS001,B&B Payments,1303,03/10/2019,02/10/2019,TRAVELODGE GB0000,THAME,,OX9 3AT,REDACTED,556*********6959,3615,TRAVELODGE,101.98,Pound Sterling (826),1.000000000,101.98,Debit,55504439275298173047260,02/11/2019,GLOUCESTER CITY COUNCIL
Gloucester City Council,23UE,Housing Services,HS001,B&B Payments,1303,03/10/2019,02/10/2019,TRAVELODGE GB0000,THAME,,OX9 3AT,REDACTED,556*********6959,3615,TRAVELODGE,218.96,Pound Sterling (826),1.000000000,218.96,Debit,55504439275298172951330,02/11/2019,GLOUCESTER CITY COUNCIL
Gloucester City Council,23UE,Housing Services,HS001,B&B Payments,1303,03/10/2019,02/10/2019,TRAVELODGE GB0000,THAME,,OX9 3AT,REDACTED,556*********6959,3615,TRAVELODGE,101.98,Pound Sterling (826),1.000000000,101.98,Debit,55504439275298172972336,02/11/2019,GLOUCESTER CITY COUNCIL
Gloucester City Council,23UE,Housing Services,HS001,B&B Payments,1303,04/10/2019,03/10/2019,TRAVELODGE GB0000,THAME,,OX9 3AT,REDACTED,556*********6959,3615,TRAVELODGE,206.96,Pound Sterling (826),1.000000000,206.96,Debit,55504439276298180921621,02/11/2019,GLOUCESTER CITY COUNCIL
Gloucester City Council,23UE,Housing Services,HS001,B&B Payments,1303,07/10/2019,04/10/2019,TRAVELODGE GB0000,THAME,,OX9 3AT,REDACTED,556*********6959,3615,TRAVELODGE,157.97,Pound Sterling (826),1.000000000,157.97,Debit,55504439277298191015545,02/11/2019,GLOUCESTER CITY COUNCIL
Gloucester City Council,23UE,Housing Services,HS001,B&B Payments,1303,07/10/2019,04/10/2019,TRAVELODGE GB0000,THAME,,OX9 3AT,REDACTED,556*********6959,3615,TRAVELODGE,160.97,Pound Sterling (826),1.000000000,160.97,Debit,55504439277298191016964,02/11/2019,GLOUCESTER CITY COUNCIL
Gloucester City Council,23UE,Housing Services,HS001,B&B Payments,1303,07/10/2019,04/10/2019,TRAVELODGE GB0000,THAME,,OX9 3AT,REDACTED,556*********6959,3615,TRAVELODGE,157.97,Pound Sterling (826),1.000000000,157.97,Debit,55504439277298191017772,02/11/2019,GLOUCESTER CITY COUNCIL
Gloucester City Council,23UE,Housing Services,HS001,B&B Payments,1303,07/10/2019,04/10/2019,TRAVELODGE GB0000,THAME,,OX9 3AT,REDACTED,556*********6959,3615,TRAVELODGE,157.97,Pound Sterling (826),1.000000000,157.97,Debit,55504439277298191018812,02/11/2019,GLOUCESTER CITY COUNCIL
Gloucester City Council,23UE,Housing Services,HS001,B&B Payments,1303,07/10/2019,04/10/2019,TRAVELODGE GB0000,THAME,,OX9 3AT,REDACTED,556*********6959,3615,TRAVELODGE,205.96,Pound Sterling (826),1.000000000,205.96,Debit,55504439277298191023333,02/11/2019,GLOUCESTER CITY COUNCIL
Gloucester City Council,23UE,Housing Services,HS001,B&B Payments,1303,07/10/2019,04/10/2019,TRAVELODGE GB0000,THAME,,OX9 3AT,REDACTED,556*********6959,3615,TRAVELODGE,322.95,Pound Sterling (826),1.000000000,322.95,Debit,55504439277298191046391,02/11/2019,GLOUCESTER CITY COUNCIL
Gloucester City Council,23UE,Housing Services,HS001,B&B Payments,1303,07/10/2019,04/10/2019,TRAVELODGE GB0000,THAME,,OX9 3AT,REDACTED,556*********6959,3615,TRAVELODGE,157.97,Pound Sterling (826),1.000000000,157.97,Debit,55504439277298191108951,02/11/2019,GLOUCESTER CITY COUNCIL
Gloucester City Council,23UE,Housing Services,HS001,B&B Payments,1303,07/10/2019,04/10/2019,TRAVELODGE GB0000,THAME,,OX9 3AT,REDACTED,556*********6959,3615,TRAVELODGE,231.96,Pound Sterling (826),1.000000000,231.96,Debit,55504439277298191113050,02/11/2019,GLOUCESTER CITY COUNCIL
Gloucester City Council,23UE,Housing Services,HS001,B&B Payments,1303,07/10/2019,04/10/2019,TRAVELODGE GB0000,THAME,,OX9 3AT,REDACTED,556*********6959,3615,TRAVELODGE,415.94,Pound Sterling (826),1.000000000,415.94,Debit,55504439277298191118174,02/11/2019,GLOUCESTER CITY COUNCIL
Gloucester City Council,23UE,Housing Services,HS001,B&B Payments,1303,08/10/2019,07/10/2019,TRAVELODGE GB0000,THAME,,OX9 3AT,REDACTED,556*********6959,3615,TRAVELODGE,197.97,Pound Sterling (826),1.000000000,197.97,Debit,55504439280298108974912,02/11/2019,GLOUCESTER CITY COUNCIL
Gloucester City Council,23UE,Housing Services,HS001,B&B Payments,1303,08/10/2019,07/10/2019,TRAVELODGE GB0000,THAME,,OX9 3AT,REDACTED,556*********6959,3615,TRAVELODGE,197.97,Pound Sterling (826),1.000000000,197.97,Debit,55504439280298108975497,02/11/2019,GLOUCESTER CITY COUNCIL
Gloucester City Council,23UE,Housing Services,HS001,B&B Payments,1303,08/10/2019,07/10/2019,TRAVELODGE GB0000,THAME,,OX9 3AT,REDACTED,556*********6959,3615,TRAVELODGE,197.97,Pound Sterling (826),1.000000000,197.97,Debit,55504439280298108976099,02/11/2019,GLOUCESTER CITY COUNCIL
Gloucester City Council,23UE,Housing Services,HS001,B&B Payments,1303,08/10/2019,07/10/2019,TRAVELODGE GB0000,THAME,,OX9 3AT,REDACTED,556*********6959,3615,TRAVELODGE,197.97,Pound Sterling (826),1.000000000,197.97,Debit,55504439280298108977030,02/11/2019,GLOUCESTER CITY COUNCIL
Gloucester City Council,23UE,Housing Services,HS001,B&B Payments,1303,08/10/2019,07/10/2019,TRAVELODGE GB0000,THAME,,OX9 3AT,REDACTED,556*********6959,3615,TRAVELODGE,199.97,Pound Sterling (826),1.000000000,199.97,Debit,55504439280298109025128,02/11/2019,GLOUCESTER CITY COUNCIL
Gloucester City Council,23UE,Housing Services,HS001,B&B Payments,1303,08/10/2019,07/10/2019,TRAVELODGE GB0000,THAME,,OX9 3AT,REDACTED,556*********6959,3615,TRAVELODGE,209.97,Pound Sterling (826),1.000000000,209.97,Debit,55504439280298109035259,02/11/2019,GLOUCESTER CITY COUNCIL
Gloucester City Council,23UE,Housing Services,HS001,B&B Payments,1303,08/10/2019,07/10/2019,TRAVELODGE GB0000,THAME,,OX9 3AT,REDACTED,556*********6959,3615,TRAVELODGE,197.97,Pound Sterling (826),1.000000000,197.97,Debit,55504439280298109089009,02/11/2019,GLOUCESTER CITY COUNCIL
Gloucester City Council,23UE,Housing Services,HS001,B&B Payments,1303,08/10/2019,07/10/2019,TRAVELODGE GB0000,THAME,,OX9 3AT,REDACTED,556*********6959,3615,TRAVELODGE,199.97,Pound Sterling (826),1.000000000,199.97,Debit,55504439280298109108130,02/11/2019,GLOUCESTER CITY COUNCIL
Gloucester City Council,23UE,Housing Services,HS001,B&B Payments,1303,08/10/2019,07/10/2019,TRAVELODGE GB0000,THAME,,OX9 3AT,REDACTED,556*********6959,3615,TRAVELODGE,364.93,Pound Sterling (826),1.000000000,364.93,Debit,55504439280298108972973,02/11/2019,GLOUCESTER CITY COUNCIL
Gloucester City Council,23UE,Housing Services,HS001,B&B Payments,1303,08/10/2019,07/10/2019,TRAVELODGE GB0000,THAME,,OX9 3AT,REDACTED,556*********6959,3615,TRAVELODGE,197.97,Pound Sterling (826),1.000000000,197.97,Debit,55504439280298108974292,02/11/2019,GLOUCESTER CITY COUNCIL
Gloucester City Council,23UE,Housing Services,HS001,B&B Payments,1303,09/10/2019,08/10/2019,TRAVELODGE GB0000,THAME,,OX9 3AT,REDACTED,556*********6959,3615,TRAVELODGE,265.95,Pound Sterling (826),1.000000000,265.95,Debit,55504439281298116418547,02/11/2019,GLOUCESTER CITY COUNCIL
Gloucester City Council,23UE,Housing Services,HS001,B&B Payments,1303,09/10/2019,08/10/2019,TRAVELODGE GB0000,THAME,,OX9 3AT,REDACTED,556*********6959,3615,TRAVELODGE,170.98,Pound Sterling (826),1.000000000,170.98,Debit,55504439281298116415097,02/11/2019,GLOUCESTER CITY COUNCIL
Gloucester City Council,23UE,Housing Services,HS001,B&B Payments,1303,09/10/2019,08/10/2019,TRAVELODGE GB0000,THAME,,OX9 3AT,REDACTED,556*********6959,3615,TRAVELODGE,191.97,Pound Sterling (826),1.000000000,191.97,Debit,55504439281298116375911,02/11/2019,GLOUCESTER CITY COUNCIL
Gloucester City Council,23UE,Housing Services,HS001,B&B Payments,1303,09/10/2019,08/10/2019,HIE GLOUCESTER SOUTH,GLOUCESTER,GBR,GL2 2AB,REDACTED,556*********6959,3501,HOLIDAY INNS,636.93,Pound Sterling (826),1.000000000,636.93,Debit,55184229281532828373281,02/11/2019,GLOUCESTER CITY COUNCIL
Gloucester City Council,23UE,Housing Services,HS001,B&B Payments,1303,11/10/2019,10/10/2019,TRAVELODGE GB0000,THAME,,OX9 3AT,REDACTED,556*********6959,3615,TRAVELODGE,220.95,Pound Sterling (826),1.000000000,220.95,Debit,55504439283298130965331,02/11/2019,GLOUCESTER CITY COUNCIL
Gloucester City Council,23UE,Housing Services,HS001,B&B Payments,1303,11/10/2019,10/10/2019,TRAVELODGE GB0000,THAME,,OX9 3AT,REDACTED,556*********6959,3615,TRAVELODGE,220.95,Pound Sterling (826),1.000000000,220.95,Debit,55504439283298130961488,02/11/2019,GLOUCESTER CITY COUNCIL
Gloucester City Council,23UE,Housing Services,HS001,B&B Payments,1303,11/10/2019,10/10/2019,TRAVELODGE GB0000,THAME,,OX9 3AT,REDACTED,556*********6959,3615,TRAVELODGE,177.96,Pound Sterling (826),1.000000000,177.96,Debit,55504439283298130954756,02/11/2019,GLOUCESTER CITY COUNCIL
Gloucester City Council,23UE,Housing Services,HS001,B&B Payments,1303,11/10/2019,10/10/2019,TRAVELODGE GB0000,THAME,,OX9 3AT,REDACTED,556*********6959,3615,TRAVELODGE,42.99,Pound Sterling (826),1.000000000,42.99,Debit,55504439283298130943445,02/11/2019,GLOUCESTER CITY COUNCIL
Gloucester City Council,23UE,Housing Services,HS001,B&B Payments,1303,11/10/2019,10/10/2019,TRAVELODGE GB0000,THAME,,OX9 3AT,REDACTED,556*********6959,3615,TRAVELODGE,171.96,Pound Sterling (826),1.000000000,171.96,Debit,55504439283298130934725,02/11/2019,GLOUCESTER CITY COUNCIL
Gloucester City Council,23UE,Housing Services,HS001,B&B Payments,1303,11/10/2019,10/10/2019,TRAVELODGE GB0000,THAME,,OX9 3AT,REDACTED,556*********6959,3615,TRAVELODGE,171.96,Pound Sterling (826),1.000000000,171.96,Debit,55504439283298130933636,02/11/2019,GLOUCESTER CITY COUNCIL
Gloucester City Council,23UE,Housing Services,HS001,B&B Payments,1303,11/10/2019,10/10/2019,TRAVELODGE GB0000,THAME,,OX9 3AT,REDACTED,556*********6959,3615,TRAVELODGE,171.96,Pound Sterling (826),1.000000000,171.96,Debit,55504439283298130933032,02/11/2019,GLOUCESTER CITY COUNCIL
Gloucester City Council,23UE,Housing Services,HS001,B&B Payments,1303,14/10/2019,11/10/2019,TRAVELODGE GB0000,THAME,,OX9 3AT,REDACTED,556*********6959,3615,TRAVELODGE,161.97,Pound Sterling (826),1.000000000,161.97,Debit,55504439284298138625498,02/11/2019,GLOUCESTER CITY COUNCIL
Gloucester City Council,23UE,Housing Services,HS001,B&B Payments,1303,15/10/2019,14/10/2019,TRAVELODGE GB0000,THAME,,OX9 3AT,REDACTED,556*********6959,3615,TRAVELODGE,245.96,Pound Sterling (826),1.000000000,245.96,Debit,55504439287298158234806,02/11/2019,GLOUCESTER CITY COUNCIL
Gloucester City Council,23UE,Housing Services,HS001,B&B Payments,1303,15/10/2019,14/10/2019,TRAVELODGE GB0000,THAME,,OX9 3AT,REDACTED,556*********6959,3615,TRAVELODGE,198.97,Pound Sterling (826),1.000000000,198.97,Debit,55504439287298158117886,02/11/2019,GLOUCESTER CITY COUNCIL
Gloucester City Council,23UE,Housing Services,HS001,B&B Payments,1303,15/10/2019,14/10/2019,TRAVELODGE GB0000,THAME,,OX9 3AT,REDACTED,556*********6959,3615,TRAVELODGE,201.97,Pound Sterling (826),1.000000000,201.97,Debit,55504439287298158116482,02/11/2019,GLOUCESTER CITY COUNCIL
Gloucester City Council,23UE,Housing Services,HS001,B&B Payments,1303,15/10/2019,14/10/2019,TRAVELODGE GB0000,THAME,,OX9 3AT,REDACTED,556*********6959,3615,TRAVELODGE,138.98,Pound Sterling (826),1.000000000,138.98,Debit,55504439287298158109719,02/11/2019,GLOUCESTER CITY COUNCIL
Gloucester City Council,23UE,Housing Services,HS001,B&B Payments,1303,15/10/2019,14/10/2019,TRAVELODGE GB0000,THAME,,OX9 3AT,REDACTED,556*********6959,3615,TRAVELODGE,134.98,Pound Sterling (826),1.000000000,134.98,Debit,55504439287298158108794,02/11/2019,GLOUCESTER CITY COUNCIL
Gloucester City Council,23UE,Housing Services,HS001,B&B Payments,1303,15/10/2019,14/10/2019,TRAVELODGE GB0000,THAME,,OX9 3AT,REDACTED,556*********6959,3615,TRAVELODGE,361.93,Pound Sterling (826),1.000000000,361.93,Debit,55504439287298158103852,02/11/2019,GLOUCESTER CITY COUNCIL
Gloucester City Council,23UE,Housing Services,HS001,B&B Payments,1303,16/10/2019,15/10/2019,HIE GLOUCESTER SOUTH,GLOUCESTER,GBR,GL2 2AB,REDACTED,556*********6959,3501,HOLIDAY INNS,615.93,Pound Sterling (826),1.000000000,615.93,Debit,55184229288532896416676,02/11/2019,GLOUCESTER CITY COUNCIL
Gloucester City Council,23UE,Housing Services,HS001,B&B Payments,1303,17/10/2019,16/10/2019,TRAVELODGE GB0000,THAME,,OX9 3AT,REDACTED,556*********6959,3615,TRAVELODGE,106.98,Pound Sterling (826),1.000000000,106.98,Debit,55504439289298172643758,02/11/2019,GLOUCESTER CITY COUNCIL
Gloucester City Council,23UE,Housing Services,HS001,B&B Payments,1303,17/10/2019,16/10/2019,TRAVELODGE GB0000,THAME,,OX9 3AT,REDACTED,556*********6959,3615,TRAVELODGE,106.98,Pound Sterling (826),1.000000000,106.98,Debit,55504439289298172747492,02/11/2019,GLOUCESTER CITY COUNCIL
Gloucester City Council,23UE,Housing Services,HS001,B&B Payments,1303,17/10/2019,16/10/2019,TRAVELODGE GB0000,THAME,,OX9 3AT,REDACTED,556*********6959,3615,TRAVELODGE,106.98,Pound Sterling (826),1.000000000,106.98,Debit,55504439289298172680164,02/11/2019,GLOUCESTER CITY COUNCIL
Gloucester City Council,23UE,Housing Services,HS001,B&B Payments,1303,17/10/2019,16/10/2019,TRAVELODGE GB0000,THAME,,OX9 3AT,REDACTED,556*********6959,3615,TRAVELODGE,106.98,Pound Sterling (826),1.000000000,106.98,Debit,55504439289298172679554,02/11/2019,GLOUCESTER CITY COUNCIL
Gloucester City Council,23UE,Housing Services,HS001,B&B Payments,1303,17/10/2019,16/10/2019,HIE GLOUCESTER SOUTH,GLOUCESTER,GBR,GL2 2AB,REDACTED,556*********6959,3501,HOLIDAY INNS,645.93,Pound Sterling (826),1.000000000,645.93,Debit,55184229289532905697802,02/11/2019,GLOUCESTER CITY COUNCIL
Gloucester City Council,23UE,Housing Services,HS001,B&B Payments,1303,18/10/2019,17/10/2019,TRAVELODGE GB0000,THAME,,OX9 3AT,REDACTED,556*********6959,3615,TRAVELODGE,443.92,Pound Sterling (826),1.000000000,443.92,Debit,55504439290298180023727,02/11/2019,GLOUCESTER CITY COUNCIL
Gloucester City Council,23UE,Housing Services,HS001,B&B Payments,1303,21/10/2019,18/10/2019,TRAVELODGE GB0000,THAME,,OX9 3AT,REDACTED,556*********6959,3615,TRAVELODGE,143.97,Pound Sterling (826),1.000000000,143.97,Debit,55504439291298190115785,02/11/2019,GLOUCESTER CITY COUNCIL
Gloucester City Council,23UE,Housing Services,HS001,B&B Payments,1303,21/10/2019,18/10/2019,TRAVELODGE GB0000,THAME,,OX9 3AT,REDACTED,556*********6959,3615,TRAVELODGE,214.96,Pound Sterling (826),1.000000000,214.96,Debit,55504439291298190103971,02/11/2019,GLOUCESTER CITY COUNCIL
Gloucester City Council,23UE,Housing Services,HS001,B&B Payments,1303,21/10/2019,18/10/2019,TRAVELODGE GB0000,THAME,,OX9 3AT,REDACTED,556*********6959,3615,TRAVELODGE,214.96,Pound Sterling (826),1.000000000,214.96,Debit,55504439291298189997078,02/11/2019,GLOUCESTER CITY COUNCIL
Gloucester City Council,23UE,Housing Services,HS001,B&B Payments,1303,21/10/2019,18/10/2019,TRAVELODGE GB0000,THAME,,OX9 3AT,REDACTED,556*********6959,3615,TRAVELODGE,191.96,Pound Sterling (826),1.000000000,191.96,Debit,55504439291298190053101,02/11/2019,GLOUCESTER CITY COUNCIL
Gloucester City Council,23UE,Housing Services,HS001,B&B Payments,1303,21/10/2019,18/10/2019,TRAVELODGE GB0000,THAME,,OX9 3AT,REDACTED,556*********6959,3615,TRAVELODGE,173.97,Pound Sterling (826),1.000000000,173.97,Debit,55504439291298190037542,02/11/2019,GLOUCESTER CITY COUNCIL
Gloucester City Council,23UE,Housing Services,HS001,B&B Payments,1303,21/10/2019,18/10/2019,PREMIER INN 44537895,GLOUCESTER,,GL1 5SF,REDACTED,556*********6959,3811,PREMIER INN,522.5,Pound Sterling (826),1.000000000,522.5,Debit,55541969293529000228585,02/11/2019,GLOUCESTER CITY COUNCIL
Gloucester City Council,23UE,Housing Services,HS001,B&B Payments,1303,22/10/2019,21/10/2019,TRAVELODGE GB0000,THAME,,OX9 3AT,REDACTED,556*********6959,3615,TRAVELODGE,55.99,Pound Sterling (826),1.000000000,55.99,Debit,55504439294298107001828,02/11/2019,GLOUCESTER CITY COUNCIL
Gloucester City Council,23UE,Housing Services,HS001,B&B Payments,1303,22/10/2019,21/10/2019,TRAVELODGE GB0000,THAME,,OX9 3AT,REDACTED,556*********6959,3615,TRAVELODGE,249.96,Pound Sterling (826),1.000000000,249.96,Debit,55504439294298107047425,02/11/2019,GLOUCESTER CITY COUNCIL
Gloucester City Council,23UE,Housing Services,HS001,B&B Payments,1303,23/10/2019,22/10/2019,TRAVELODGE GB0000,THAME,,OX9 3AT,REDACTED,556*********6959,3615,TRAVELODGE,56.99,Pound Sterling (826),1.000000000,56.99,Debit,55504439295298114651226,02/11/2019,GLOUCESTER CITY COUNCIL
Gloucester City Council,23UE,Housing Services,HS001,B&B Payments,1303,23/10/2019,22/10/2019,TRAVELODGE GB0000,THAME,,OX9 3AT,REDACTED,556*********6959,3615,TRAVELODGE,58.99,Pound Sterling (826),1.000000000,58.99,Debit,55504439295298114701955,02/11/2019,GLOUCESTER CITY COUNCIL
Gloucester City Council,23UE,Housing Services,HS001,B&B Payments,1303,24/10/2019,23/10/2019,HIE GLOUCESTER SOUTH,GLOUCESTER,GBR,GL2 2AB,REDACTED,556*********6959,3501,HOLIDAY INNS,490.95,Pound Sterling (826),1.000000000,490.95,Debit,55184229296532978011106,02/11/2019,GLOUCESTER CITY COUNCIL
Gloucester City Council,23UE,Housing Services,HS001,B&B Payments,1303,25/10/2019,24/10/2019,TRAVELODGE GB0000,THAME,,OX9 3AT,REDACTED,556*********6959,3615,TRAVELODGE,293.95,Pound Sterling (826),1.000000000,293.95,Debit,55504439297298130005843,02/11/2019,GLOUCESTER CITY COUNCIL
Gloucester City Council,23UE,Housing Services,HS001,B&B Payments,1303,28/10/2019,25/10/2019,TRAVELODGE GB0000,THAME,,OX9 3AT,REDACTED,556*********6959,3615,TRAVELODGE,441.93,Pound Sterling (826),1.000000000,441.93,Debit,55504439298298140041712,02/11/2019,GLOUCESTER CITY COUNCIL
Gloucester City Council,23UE,Housing Services,HS001,B&B Payments,1303,28/10/2019,25/10/2019,TRAVELODGE GB0000,THAME,,OX9 3AT,REDACTED,556*********6959,3615,TRAVELODGE,357.94,Pound Sterling (826),1.000000000,357.94,Debit,55504439298298140153954,02/11/2019,GLOUCESTER CITY COUNCIL
Gloucester City Council,23UE,Housing Services,HS001,B&B Payments,1303,28/10/2019,25/10/2019,TRAVELODGE GB0000,THAME,,OX9 3AT,REDACTED,556*********6959,3615,TRAVELODGE,350.94,Pound Sterling (826),1.000000000,350.94,Debit,55504439298298140048279,02/11/2019,GLOUCESTER CITY COUNCIL
Gloucester City Council,23UE,Housing Services,HS001,B&B Payments,1303,28/10/2019,23/10/2019,TRAVELODGE GB0809,GLOUCESTER,,GL1 5SF,REDACTED,556*********6959,3615,TRAVELODGE,146.48,Pound Sterling (826),1.000000000,146.48,Debit,55504439298110258815565,02/11/2019,GLOUCESTER CITY COUNCIL
Gloucester City Council,23UE,Housing Services,HS001,B&B Payments,1303,28/10/2019,23/10/2019,TRAVELODGE GB0809,GLOUCESTER,,GL1 5SF,REDACTED,556*********6959,3615,TRAVELODGE,146.48,Pound Sterling (826),1.000000000,146.48,Debit,55504439298110258815573,02/11/2019,GLOUCESTER CITY COUNCIL
Gloucester City Council,23UE,Housing Services,HS001,B&B Payments,1303,28/10/2019,23/10/2019,TRAVELODGE GB0809,GLOUCESTER,,GL1 5SF,REDACTED,556*********6959,3615,TRAVELODGE,148.48,Pound Sterling (826),1.000000000,148.48,Debit,55504439298110258815581,02/11/2019,GLOUCESTER CITY COUNCIL
Gloucester City Council,23UE,Housing Services,HS001,B&B Payments,1303,28/10/2019,23/10/2019,TRAVELODGE GB0821,CHELTENHAM,,GL51 6TA,REDACTED,556*********6959,3615,TRAVELODGE,311.95,Pound Sterling (826),1.000000000,311.95,Debit,55504439298110259321514,02/11/2019,GLOUCESTER CITY COUNCIL
Gloucester City Council,23UE,Housing Services,HS001,B&B Payments,1303,28/10/2019,23/10/2019,TRAVELODGE GB0821,CHELTENHAM,,GL51 6TA,REDACTED,556*********6959,3615,TRAVELODGE,321.45,Pound Sterling (826),1.000000000,321.45,Debit,55504439298110259321522,02/11/2019,GLOUCESTER CITY COUNCIL
Gloucester City Council,23UE,Housing Services,HS001,B&B Payments,1303,28/10/2019,25/10/2019,PREMIER INN 44537895,GLOUCESTER,,GL1 5SF,REDACTED,556*********6959,3811,PREMIER INN,227,Pound Sterling (826),1.000000000,227,Debit,55541969300529000201583,02/11/2019,GLOUCESTER CITY COUNCIL
Gloucester City Council,23UE,Housing Services,HS001,B&B Payments,1303,28/10/2019,25/10/2019,HIE GLOUCESTER SOUTH,GLOUCESTER,GBR,GL2 2AB,REDACTED,556*********6959,3501,HOLIDAY INNS,-209.98,Pound Sterling (826),1.000000000,-209.98,Credit,55184229298542996530712,02/11/2019,GLOUCESTER CITY COUNCIL
Gloucester City Council,23UE,Housing Services,HS001,B&B Payments,1303,29/10/2019,28/10/2019,TRAVELODGE GB0000,THAME,,OX9 3AT,REDACTED,556*********6959,3615,TRAVELODGE,224.96,Pound Sterling (826),1.000000000,224.96,Debit,55504439301298157569543,02/11/2019,GLOUCESTER CITY COUNCIL
Gloucester City Council,23UE,Housing Services,HS001,B&B Payments,1303,30/10/2019,28/10/2019,PREMIER INN 44537895,GLOUCESTER,,GL1 5SF,REDACTED,556*********6959,3811,PREMIER INN,307,Pound Sterling (826),1.000000000,307,Debit,55541969303529000202182,02/11/2019,GLOUCESTER CITY COUNCIL
Gloucester City Council,23UE,Housing Services,HS001,B&B Payments,1303,30/10/2019,29/10/2019,TRAVELODGE GB0000,THAME,,OX9 3AT,REDACTED,556*********6959,3615,TRAVELODGE,122.98,Pound Sterling (826),1.000000000,122.98,Debit,55504439302298165639899,02/11/2019,GLOUCESTER CITY COUNCIL
Gloucester City Council,23UE,Housing Services,HS001,B&B Payments,1303,30/10/2019,29/10/2019,TRAVELODGE GB0000,THAME,,OX9 3AT,REDACTED,556*********6959,3615,TRAVELODGE,280.94,Pound Sterling (826),1.000000000,280.94,Debit,55504439302298165596438,02/11/2019,GLOUCESTER CITY COUNCIL
Gloucester City Council,23UE,Housing Services,HS001,B&B Payments,1303,30/10/2019,29/10/2019,TRAVELODGE GB0000,THAME,,OX9 3AT,REDACTED,556*********6959,3615,TRAVELODGE,129.98,Pound Sterling (826),1.000000000,129.98,Debit,55504439302298165614975,02/11/2019,GLOUCESTER CITY COUNCIL
Gloucester City Council,23UE,Housing Services,HS001,B&B Payments,1303,01/11/2019,31/10/2019,TRAVELODGE GB0000,THAME,,OX9 3AT,REDACTED,556*********6959,3615,TRAVELODGE,50.99,Pound Sterling (826),1.000000000,50.99,Debit,55504439304298180856856,02/11/2019,GLOUCESTER CITY COUNCIL
Gloucester City Council,23UE,Housing Services,HS001,B&B Payments,1303,01/11/2019,31/10/2019,TRAVELODGE GB0000,THAME,,OX9 3AT,REDACTED,556*********6959,3615,TRAVELODGE,49.99,Pound Sterling (826),1.000000000,49.99,Debit,55504439304298180897900,02/11/2019,GLOUCESTER CITY COUNCIL
Gloucester City Council,23UE,Housing Services,HS001,B&B Payments,1303,01/11/2019,31/10/2019,TRAVELODGE GB0000,THAME,,OX9 3AT,REDACTED,556*********6959,3615,TRAVELODGE,185.96,Pound Sterling (826),1.000000000,185.96,Debit,55504439304298180901785,02/11/2019,GLOUCESTER CITY COUNCIL
Gloucester City Council,23UE,Housing Services,HS001,B&B Payments,1303,01/11/2019,31/10/2019,TRAVELODGE GB0000,THAME,,OX9 3AT,REDACTED,556*********6959,3615,TRAVELODGE,279.94,Pound Sterling (826),1.000000000,279.94,Debit,55504439304298180902601,02/11/2019,GLOUCESTER CITY COUNCIL
Gloucester City Council,23UE,Housing Services,HS001,B&B Payments,1303,01/11/2019,31/10/2019,TRAVELODGE GB0000,THAME,,OX9 3AT,REDACTED,556*********6959,3615,TRAVELODGE,329.93,Pound Sterling (826),1.000000000,329.93,Debit,55504439304298180962290,02/11/2019,GLOUCESTER CITY COUNCIL
Gloucester City Council,23UE,Housing Services,HS001,B&B Payments,1303,01/11/2019,31/10/2019,HIE GLOUCESTER SOUTH,GLOUCESTER,GBR,GL2 2AB,REDACTED,556*********6959,3501,HOLIDAY INNS,855.91,Pound Sterling (826),1.000000000,855.91,Debit,55184229304543053481080,02/11/2019,GLOUCESTER CITY COUNCIL
Gloucester City Council,23UE,Gloucester Guildhall,GH001,Public Transport - Staff,2402,03/10/2019,02/10/2019,Trainline,London,GBR,1445,REDACTED,556*********8256,4112,PASSENGER RAILWAYS,44.9,Pound Sterling (826),1.000000000,44.9,Debit,85130089275939494627973,02/11/2019,GLOUCESTER CITY COUNCIL
Gloucester City Council,23UE,Gloucester Guildhall,GH001,Public Transport - Staff,2402,03/10/2019,02/10/2019,Trainline.com,London,GBR,EC1N 2TD,REDACTED,556*********8256,4112,PASSENGER RAILWAYS,37.3,Pound Sterling (826),1.000000000,37.3,Debit,15265679275000068773644,02/11/2019,GLOUCESTER CITY COUNCIL
Gloucester City Council,23UE,Guildhall Events,GH002,Advertising & Publicity,3404,07/10/2019,04/10/2019,WWW.INSTANTPRINT.C,01709 382202,,S63 5DR,REDACTED,556*********8256,7338,QUICK-COPY AND REPRODUCTION SERVICES,145,Pound Sterling (826),1.000000000,145,Debit,85481479278177240154241,02/11/2019,GLOUCESTER CITY COUNCIL
Gloucester City Council,23UE,Guildhall Events,GH002,Advertising & Publicity,3404,07/10/2019,04/10/2019,PAYPAL *ONESTOP,35314369001,GBR,TW91EH,REDACTED,556*********8256,5999,MISCELLANEOUS AND RETAIL STORES,125.34,Pound Sterling (826),1.000000000,125.34,Debit,85130089279939613717669,02/11/2019,GLOUCESTER CITY COUNCIL
Gloucester City Council,23UE,Guildhall Events,GH002,Advertising & Publicity,3404,09/10/2019,08/10/2019,WWW.CLOTHES2ORDER.COM,MANCHESTER M1,GBR,M17 1EH,REDACTED,556*********8256,5137,"MEN'S,WOMEN'S AND CHILDREN'S UNIFORMS AN",394.32,Pound Sterling (826),1.000000000,394.32,Debit,15276329282000498311734,02/11/2019,GLOUCESTER CITY COUNCIL
Gloucester City Council,23UE,Guildhall Events,GH002,Advertising & Publicity,3404,09/10/2019,08/10/2019,WWW.DIGITALPRINTING.CO,02890222111,,BT3 9JP,REDACTED,556*********8256,7338,QUICK-COPY AND REPRODUCTION SERVICES,96,Pound Sterling (826),1.000000000,96,Debit,55504439281295397167025,02/11/2019,GLOUCESTER CITY COUNCIL
Gloucester City Council,23UE,Guildhall Events,GH002,Advertising & Publicity,3404,09/10/2019,08/10/2019,WWW.INSTANTPRINT.C,01709 382202,,S63 5DR,REDACTED,556*********8256,7338,QUICK-COPY AND REPRODUCTION SERVICES,342,Pound Sterling (826),1.000000000,342,Debit,85481479282178380449783,02/11/2019,GLOUCESTER CITY COUNCIL
Gloucester City Council,23UE,Gloucester Guildhall,GH001,Public Transport - Staff,2402,10/10/2019,09/10/2019,LUL TICKET MACHINE,PADDINGTON (C,,W21RH,REDACTED,556*********8256,4112,PASSENGER RAILWAYS,13.1,Pound Sterling (826),1.000000000,13.1,Debit,85481479283178602417567,02/11/2019,GLOUCESTER CITY COUNCIL
Gloucester City Council,23UE,Gloucester Guildhall,GH001,Equipment and Furniture,3001,16/10/2019,15/10/2019,AMZNMktplace,amazon.co.uk,GBR,EC2A 2FA,REDACTED,556*********8256,5999,MISCELLANEOUS AND RETAIL STORES,52.67,Pound Sterling (826),1.000000000,52.67,Debit,52692019288200455994403,02/11/2019,GLOUCESTER CITY COUNCIL
Gloucester City Council,23UE,Guildhall Events,GH002,General Supplies/Materials,3025,17/10/2019,16/10/2019,AMZNMktplace,amazon.co.uk,GBR,EC2A 2FA,REDACTED,556*********8256,5999,MISCELLANEOUS AND RETAIL STORES,23.98,Pound Sterling (826),1.000000000,23.98,Debit,52692019289200671885277,02/11/2019,GLOUCESTER CITY COUNCIL
Gloucester City Council,23UE,Blackfriars,GH010,Catering Provisions,3103,17/10/2019,16/10/2019,CATERING LEISURE,02392378700,GBR,PO61US,REDACTED,556*********8256,5499,"MISC FOOD STORES-SPECIALITY,CONVENIENCE,MARKETS,VENDING MACHINES",19.06,Pound Sterling (826),1.000000000,19.06,Debit,85130089289941198879706,02/11/2019,GLOUCESTER CITY COUNCIL
Gloucester City Council,23UE,Guildhall Events,GH002,General Supplies/Materials,3025,18/10/2019,15/10/2019,THE WRISTBAND COMPANY,NORTHWICH,,CW9 6NX,REDACTED,556*********8256,5999,MISCELLANEOUS AND RETAIL STORES,96,Pound Sterling (826),1.000000000,96,Debit,55504439290110272275141,02/11/2019,GLOUCESTER CITY COUNCIL
Gloucester City Council,23UE,Gloucester Guildhall,GH001,Equipment and Furniture,3001,22/10/2019,21/10/2019,WHOLESALE LED LIGHTS,LEICESTER,GBR,LE4 0BF,REDACTED,556*********8256,5251,HARDWARE STORES,56,Pound Sterling (826),1.000000000,56,Debit,15276329295000258110420,02/11/2019,GLOUCESTER CITY COUNCIL
Gloucester City Council,23UE,Blackfriars Weddings,GH011,Conference Fees,0553,23/10/2019,22/10/2019,EB *TWIA 2020 SOUTH WE,801-413-7200,IRL,DUBLIN 8,REDACTED,556*********8256,7399,BUSINESS SERVICES NOT ELSEWHERE CLASSIFIED,139.8,Pound Sterling (826),1.000000000,139.8,Debit,15276329296000177440220,02/11/2019,GLOUCESTER CITY COUNCIL
Gloucester City Council,23UE,Guildhall Bar and Caf�,GH005,Catering Provisions,3103,25/10/2019,24/10/2019,ASDA GROCERIES ONLINE,INTERNET,GBR,LS11 5AD,REDACTED,556*********8256,5411,"GROCERY STORES, SUPERMARKETS",-4.13,Pound Sterling (826),1.000000000,-4.13,Credit,65377759298030393229916,02/11/2019,GLOUCESTER CITY COUNCIL
Gloucester City Council,23UE,Guildhall Bar and Caf�,GH005,Catering Provisions,3103,25/10/2019,24/10/2019,ASDA GROCERIES ONLINE,INTERNET,GBR,LS11 5AD,REDACTED,556*********8256,5411,"GROCERY STORES, SUPERMARKETS",-49.41,Pound Sterling (826),1.000000000,-49.41,Credit,65377759298030393229338,02/11/2019,GLOUCESTER CITY COUNCIL
Gloucester City Council,23UE,Guildhall Events,GH002,Advertising & Publicity,3404,25/10/2019,24/10/2019,VISTAPR*VistaPrint.com,866-8936743,NLD,LW 5928,REDACTED,556*********8256,2741,MISCELLANEOUS PUBLISHING & PRINTING,340.75,Pound Sterling (826),1.000000000,340.75,Debit,55204729297200535338222,02/11/2019,GLOUCESTER CITY COUNCIL
Gloucester City Council,23UE,Guildhall Bar and Caf�,GH005,Catering Provisions,3103,25/10/2019,24/10/2019,TESCO STORE 2581,GLOUCESTER,GBR,GL1 2SR,REDACTED,556*********8256,5411,"GROCERY STORES, SUPERMARKETS",28,Pound Sterling (826),1.000000000,28,Debit,15377759298030071596250,02/11/2019,GLOUCESTER CITY COUNCIL
Gloucester City Council,23UE,Guildhall Events,GH002,General Supplies/Materials,3025,24/10/2019,24/10/2019,AMZNMktplace,amazon.co.uk,GBR,EC2A 2FA,REDACTED,556*********8256,5999,MISCELLANEOUS AND RETAIL STORES,13.48,Pound Sterling (826),1.000000000,13.48,Debit,52692019297200388102081,02/11/2019,GLOUCESTER CITY COUNCIL
Gloucester City Council,23UE,Guildhall Bar and Caf�,GH005,Catering Provisions,3103,25/10/2019,24/10/2019,ASDA GROCERIES ONLINE,INTERNET,GBR,LS11 5AD,REDACTED,556*********8256,5411,"GROCERY STORES, SUPERMARKETS",113.38,Pound Sterling (826),1.000000000,113.38,Debit,65377759298030393229312,02/11/2019,GLOUCESTER CITY COUNCIL
Gloucester City Council,23UE,Gloucester Guildhall,GH001,Equipment and Furniture,3001,28/10/2019,25/10/2019,AMZNMktplace,amazon.co.uk,GBR,EC2A 2FA,REDACTED,556*********8256,5999,MISCELLANEOUS AND RETAIL STORES,340.4,Pound Sterling (826),1.000000000,340.4,Debit,52692019298200728597981,02/11/2019,GLOUCESTER CITY COUNCIL
Gloucester City Council,23UE,Guildhall Events,GH002,Advertising & Publicity,3404,01/11/2019,31/10/2019,FACEBK 24WBQPND72,fb.me/ads,IRL,2,REDACTED,556*********8256,7311,ADVERTISING SERVICES,35.17,Pound Sterling (826),1.000000000,35.17,Debit,15265679304000102663558,02/11/2019,GLOUCESTER CITY COUNCIL
Gloucester City Council,23UE,Financial Services,FS004,Public Transport - Staff,2402,04/10/2019,03/10/2019,WWW.GWR.COM,07889651585,,SN1 1HL,REDACTED,556*********3063,4112,PASSENGER RAILWAYS,21.9,Pound Sterling (826),1.000000000,21.9,Debit,55504439276081182292609,02/11/2019,GLOUCESTER CITY COUNCIL
Gloucester City Council,23UE,Transformation,MT006,Equipment and Furniture,3001,07/10/2019,06/10/2019,AMZNMKTPLACE AMAZON.CO,AMAZON.CO.UK,GBR,EC2A 2FA,REDACTED,556*********3063,5999,MISCELLANEOUS AND RETAIL STORES,59.5,Pound Sterling (826),1.000000000,59.5,Debit,85389249279939674829732,02/11/2019,GLOUCESTER CITY COUNCIL
Gloucester City Council,23UE,Transformation,MT006,Equipment and Furniture,3001,07/10/2019,06/10/2019,AMZNMKTPLACE AMAZON.CO,AMAZON.CO.UK,GBR,EC2A 2FA,REDACTED,556*********3063,5999,MISCELLANEOUS AND RETAIL STORES,24.99,Pound Sterling (826),1.000000000,24.99,Debit,85389249279939675012874,02/11/2019,GLOUCESTER CITY COUNCIL
Gloucester City Council,23UE,Civica Admin Charges,BI002,Professional Advice/Consultants Fees,3952,10/10/2019,09/10/2019,WWW.GOV.UK,C@HMCTS.GSI.G,,LS1 2BA,REDACTED,556*********3063,8999,PROFESSIONAL SERVICES NOT ELSEWHERE CLASSIFIED,1.5,Pound Sterling (826),1.000000000,1.5,Debit,85481479283178661779824,02/11/2019,GLOUCESTER CITY COUNCIL
Gloucester City Council,23UE,Civica Admin Charges,BI002,Professional Advice/Consultants Fees,3952,22/10/2019,21/10/2019,HMCOURTS-SERVICE.G,01452420100,,GL12ZG,REDACTED,556*********3063,9222,FINES,323.5,Pound Sterling (826),1.000000000,323.5,Debit,85481479295181791833632,02/11/2019,GLOUCESTER CITY COUNCIL
Gloucester City Council,23UE,Financial Services,FS004,Public Transport - Staff,2402,23/10/2019,22/10/2019,Trainline,London,GBR,1445,REDACTED,556*********3063,4112,PASSENGER RAILWAYS,129.25,Pound Sterling (826),1.000000000,129.25,Debit,85130089295942504673322,02/11/2019,GLOUCESTER CITY COUNCIL
Gloucester City Council,23UE,Business Transformation,BI006,General Supplies/Materials,3025,28/10/2019,27/10/2019,AMZNMktplace,amazon.co.uk,GBR,EC2A 2FA,REDACTED,556*********3063,5999,MISCELLANEOUS AND RETAIL STORES,35.94,Pound Sterling (826),1.000000000,35.94,Debit,52692019300200301810831,02/11/2019,GLOUCESTER CITY COUNCIL
Gloucester City Council,23UE,Kings Square,XCKQS,Contract Works/Services,9001,29/10/2019,28/10/2019,NPOWER,SCARCROFT,,LS14 3HS,REDACTED,556*********3063,4900,"UTILITIES - GAS, WATER, SANITARY, ELECTRIC",28.8,Pound Sterling (826),1.000000000,28.8,Debit,55541969302374000020297,02/11/2019,GLOUCESTER CITY COUNCIL
Gloucester City Council,23UE,Financial Services,FS004,Public Transport - Staff,2402,01/11/2019,31/10/2019,Trainline,London,GBR,1445,REDACTED,556*********3063,4112,PASSENGER RAILWAYS,10.75,Pound Sterling (826),1.000000000,10.75,Debit,85130089304943962997541,02/11/2019,GLOUCESTER CITY COUNCIL
